[Event "Summer Prague Open-A 2022"]
[Site "Prague"]
[Date "2022.08.05"]
[Round "1.17"]
[White "Dylag, Emilia"]
[Black "Sarkar, Justin"]
[Result "0-1"]
[ECO "E04"]
[WhiteElo "2022"]
[BlackElo "2346"]
[Annotator "TA"]
[PlyCount "108"]
[EventDate "2022.08.05"]
[EventType "swiss"]
[EventCountry "CZE"]
[SourceTitle "playchess.com"]
[Source "ChessBase"]
[SourceQuality "1"]
[TimeControl "40/5400+30:1800+30"]

{[%evp 10,108,24,0,-12,-4,-19,-29,-25,-3,-14,-27,-18,-47,-52,-44,-30,-68,-67,-75,-81,-64,-39,-39,-21,-50,-26,-20,-51,-26,-26,-25,-19,-27,-33,-14,0,0,0,0,0,0,0,0,17,15,16,18,18,21,20,0,0,0,0,0,0,0,0,0,0,0,0,0,-4,-8,-8,-10,-15,-21,0,0,0,0,0,0,0,-18,-18,-18,-8,-8,-8,-1115,-1115,-1115,-1112,-919,-1108,-1083,-1042,-1046,-1008,-29947,-29951,-29952,-29950,-29962,-29963,-12818,-4682]} 1. d4 {[%emt 0:00:03]} Nf6 2. c4 e6 {[%emt 0:01:29]} 3. g3 {[%emt 0:00:25]} d5 {[%emt 0:03:11][%cal Bd7d5,Bd5c4,Bc4c3][%mdl 32]} 4. Bg2 {[%emt 0:00:17]} dxc4 {[%emt 0:00:45]} 5. Nf3 {[%emt 0:02:17]} Bb4+ {[%emt 0:00:38]} 6. Nbd2 {[%emt 0:00:56][%mdl 1024] White has compensation.} b5 {[%emt 0:02:08] Inhibits Qa4. E04: Open Catalan: 5 Nf3.} 7. O-O {[%emt 0:01:05][%cal Od2c4]} O-O {[%emt 0:02:30]} 8. b3 {[%emt 0:08:37][%cal Bb2b3,Bb3b4][%mdl 32]} c3 {[%emt 0:16:54] Black has an edge.} 9. Nb1 {[%emt 0:00:09]} Bb7 {[%emt 0:00:53]} 10. a3 {[%emt 0:03:05] [#]} Be4 $1 {[%emt 0:03:17]} 11. Ne1 {[%emt 0:00:51] Prevents c2.} ({Avoid the trap} 11. axb4 $2 c2 12. Qe1 cxb1=B $19) (11. Qe1 c2) 11... Bxg2 {[%emt 0:01:07]} 12. Kxg2 {[%emt 0:07:43]} Ba5 {[%emt 0:01:29] [#]} 13. b4 $146 {[%emt 0:02:43]} ({Predecessor:} 13. Qd3 Qd5+ 14. f3 Qxb3 15. a4 bxa4 16. Ra3 Qb7 17. Rxa4 Nc6 18. Nxc3 Rfd8 19. Bg5 {0-1 (34) Von Mettenheim,J (2219)-Colbow,C (2345) Willingen 2022}) 13... Bb6 {[%emt 0:00:08]} 14. e3 {[%emt 0:11:40] [#]} a5 $1 {[%emt 0:11:06] Black is more active.} 15. Qf3 {[%emt 0:15:11]} Qd5 {[%emt 0:06:09] And now ...axb4 would win.} 16. Nxc3 {[%emt 0:04:35]} Qxf3+ {[%emt 0:00:20]} 17. Nxf3 {[%emt 0:01:21]} axb4 {[%emt 0:00:10]} 18. Nxb5 {[%emt 0:04:43]} Rd8 {[%emt 0:03:09] ...c6 is the strong threat.} 19. Rb1 $1 {[%emt 0:03:35]} c6 {[%emt 0:15:26]} 20. Nc3 {[%emt 0:00:35]} bxc3 {[%emt 0:01:17]} 21. Rxb6 {[%emt 0:00:15]} c5 {[%emt 0:00:56]} 22. dxc5 {[%emt 0:04:06]} Nbd7 {[%emt 0:04:14]} 23. Rb3 {[%emt 0:02:41]} Ne4 $1 {[%emt 0:06:00]} 24. c6 {[%emt 0:01:06]} Ndc5 {[%emt 0:00:18] Pair of Knights!} 25. Rb4 {[%emt 0:01:16]} Rdc8 {[%emt 0:06:02]} 26. Nd4 {[%emt 0:04:11][%cal Bf3d4,Bd4f5,Bf5d6][%mdl 32]} e5 {[%emt 0:01:13]} 27. Nf5 {[%emt 0:02:40] Strongly threatening Ne7+.} Kf8 {[%emt 0:00:34] Inhibits Ne7.} 28. f3 {[%emt 0:04:55]} Nd2 {[%emt 0:02:52]} 29. Bxd2 {[%emt 0:01:49]} cxd2 {[%emt 0:00:03]} 30. Rd1 {[%emt 0:00:50]} g6 {[%emt 0:00:42]} 31. Nd6 {[%emt 0:00:45]} Rxc6 {[%emt 0:00:12]} 32. Rxd2 {[%emt 0:00:19]} Rxa3 {[%emt 0:05:05]} 33. Rb8+ {[%emt 0:07:07]} Ke7 {[%emt 0:02:54]} 34. Nc4 {[%emt 0:01:59]} Rd3 {[%emt 0:00:28]} (34... Ne4 {feels hotter.} 35. Nxe5 Nxd2 36. Nxc6+ Kd6) 35. Rbb2 {[%emt 0:03:15]} Rxd2+ {[%emt 0:02:32]} 36. Rxd2 $11 {[%emt 0:00:27][%mdl 4096] Endgame KRN-KRN} e4 {[%emt 0:00:20]} 37. fxe4 {[%emt 0:00:44]} Nxe4 {[%emt 0:00:16]} 38. Rd4 {[%emt 0:00:07]} f5 {[%emt 0:00:21]} 39. g4 {[%emt 0:00:30]} Ra6 {[%emt 0:00:50]} 40. gxf5 {[%emt 0:00:25]} Ra2+ {[%emt 0:00:34]} 41. Kh3 {[%emt 0:04:39]} gxf5 {[%emt 0:00:22]} 42. Nb6 {[%emt 0:01:30]} Kf6 {[%emt 0:09:04]} 43. Nd7+ {[%emt 0:05:37]} Kg5 {[%emt 0:01:54]} 44. Nf8 {[%emt 0:02:26]} h5 {[%emt 0:05:04] Hoping for ...h4.} 45. Ne6+ {[%emt 0:02:21]} Kf6 {[%emt 0:01:49]} 46. Nf4 {[%emt 0:03:59][%mdl 8192] Now White is beyond hope.} (46. Nc7 $11) 46... Ng5+ $19 {[%emt 0:00:59]} 47. Kg3 {[%emt 0:00:16]} h4+ $1 {[%emt 0:00:13]} 48. Kxh4 {[%emt 0:00:04]} Nf3+ {[%emt 0:00:11]} 49. Kg3 {[%emt 0:00:07]} Nxd4 {[%emt 0:00:07]} 50. exd4 {[%emt 0:00:04]} Rd2 {[%emt 0:02:54]} 51. d5 {[%emt 0:00:10]} Ke5 {[%emt 0:03:34]} 52. h4 {[%emt 0:00:16]} Rd4 {[%emt 0:01:26]} 53. Ne2 {[%emt 0:00:50]} Rd3+ {[%emt 0:00:37]} 54. Kg2 {[%emt 0:00:19]} Rxd5 {[%emt 0:00:08] Weighted Error Value: White=0.32/Black=0.02 (flawless)} (54... f4 $142 55. Kf2 Ke4) 0-1

[Event "Summer Prague Open-A 2022"]
[Site "Prague"]
[Date "2022.08.05"]
[Round "1.18"]
[White "Ranaldi, Lucas"]
[Black "Kusina, Jan"]
[Result "1-0"]
[ECO "A39"]
[WhiteElo "2339"]
[BlackElo "1954"]
[Annotator "TA"]
[PlyCount "81"]
[EventDate "2022.08.05"]
[EventType "swiss"]
[EventCountry "CZE"]
[SourceTitle "playchess.com"]
[Source "ChessBase"]
[SourceQuality "1"]
[TimeControl "40/5400+30:1800+30"]

{[%evp 20,81,36,22,49,51,48,30,35,27,28,21,30,6,9,0,0,-10,10,8,6,5,18,0,0,0,58,68,65,79,75,86,86,70,55,7,7,7,10,10,4,8,0,0,93,110,202,198,317,315,530,496,565,460,872,855,841,831,1008,922,1118,1056,1438,574]} 1. c4 {[%emt 0:00:04]} c5 {[%emt 0:00:26]} 2. Nf3 {[%emt 0:00:24]} Nf6 {[%emt 0:00:13]} 3. Nc3 {[%emt 0:00:58]} Nc6 {[%emt 0:00:19]} 4. g3 {[%emt 0:00:09]} g6 {[%emt 0:00:29]} 5. Bg2 {[%emt 0:00:08]} Bg7 {[%emt 0:00:08]} 6. O-O {[%emt 0:00:12]} O-O {[%emt 0:00:08]} 7. d4 {[%emt 0:00:16]} cxd4 {[%emt 0:00:44]} 8. Nxd4 {[%emt 0:00:10]} Nxd4 {[%emt 0:00:28]} 9. Qxd4 {[%emt 0:00:08]} d6 {[%emt 0:00:13]} 10. Qd3 {[%emt 0:00:19]} a6 {[%emt 0:01:09]} 11. Rd1 {[%emt 0:03:17][%cal Oc4c5] 11.Rd1 is the recent fashion.} Qa5 {[%emt 0:09:32] A39: Symmetrical English vs ...g6: 4 Bg2 Bg7 5 Nf3 Nf6 6 0-0 0-0 7 d4.} 12. Bd2 {[%emt 0:02:59]} Qh5 {[%emt 0:04:13] [#]} 13. Bf3 $146 {[%emt 0:11:33]} ({Predecessor:} 13. h4 Bf5 14. e4 Be6 15. Bg5 h6 16. Bf3 Bg4 17. Bxg4 Qxg4 18. Bxf6 Bxf6 19. Nd5 {1-0 (47) Barlov,D (2475)-Markovic,M (2275) Valjevo 2011}) 13... Bf5 {[%emt 0:18:07] White has an edge.} 14. Bxh5 {[%emt 0:18:51]} Bxd3 {[%emt 0:00:12]} 15. exd3 {[%emt 0:01:07]} Nxh5 {[%emt 0:01:41]} 16. Re1 {[%emt 0:16:25]} e6 {[%emt 0:04:57]} 17. Ne4 {[%emt 0:00:25]} Rfd8 {[%emt 0:04:55]} 18. g4 {[%emt 0:23:44]} Nf6 {[%emt 0:12:42][%cal Bh5f6,Bf6e4,Be4c5,Bc5d3,Bd3b2,Bb2c4][%mdl 32]} 19. Bg5 {[%emt 0:10:09][%cal Bd2g5,Bg5d8,Bd8b6][%mdl 32]} Nxe4 {[%emt 0:00:23]} 20. Bxd8 {[%emt 0:00:05] Be7 is the strong threat.} Nc5 {[%emt 0:00:20]} 21. Bb6 {[%emt 0:01:10]} Nxd3 {[%emt 0:00:38]} 22. Re4 $1 {[%emt 0:00:28]} Rc8 {[%emt 0:05:37]} ({Don't take} 22... Bxb2 23. Rd1 Nc5 24. Bxc5 dxc5 25. Rb1 $16) (22... Nxb2 $11 23. Bd4 Na4 24. Bxg7 Kxg7) 23. Rd1 $14 {[%emt 0:06:06]} Nxb2 {[%emt 0:03:48]} 24. Rxd6 {[%emt 0:00:16]} Nxc4 {[%emt 0:01:15]} 25. Rd8+ {[%emt 0:00:14]} Rxd8 {[%emt 0:00:19]} 26. Bxd8 $16 {[%emt 0:00:03][%mdl 4096] Endgame KRB-KBN} b5 {[%emt 0:00:36]} 27. Kg2 {[%emt 0:00:54]} (27. g5 $14) 27... Kf8 $11 {[%emt 0:03:27]} 28. Re1 {[%emt 0:02:23]} Be5 {[%emt 0:11:49]} 29. Bg5 {[%emt 0:00:36]} f6 {[%emt 0:01:41]} 30. Bc1 {[%emt 0:00:27] Black must now prevent f4.} Kf7 {[%emt 0:00:17]} 31. Rd1 {[%emt 0:00:46]} Ke7 {[%emt 0:01:58] [#] Against Rd7+} (31... Bd6 $11 {keeps the balance.}) 32. Rd3 $1 $16 {[%emt 0:00:17]} Bd6 {[%emt 0:00:38]} (32... f5 $16 {might work better.}) 33. Rh3 $18 {[%emt 0:00:22]} Be5 {[%emt 0:05:10]} (33... g5 $142 34. Rxh7+ Kd8) 34. Rxh7+ {[%emt 0:00:16]} Kd6 $2 {[%emt 0:00:01]} (34... Kf8 35. h4 Bd4) 35. h4 {[%emt 0:00:35] White is clearly winning.} b4 {[%emt 0:00:15]} 36. Ra7 {[%emt 0:00:49] [#] Threatens to win with h5.} a5 {[%emt 0:00:04]} (36... Bd4 $142) 37. h5 {[%emt 0:00:27]} gxh5 {[%emt 0:00:09]} 38. gxh5 {[%emt 0:00:07][%cal Bg4h5,Bh5h6,Bh6h7][%mdl 32] aiming for h6.} f5 {[%emt 0:00:45]} 39. h6 {[%emt 0:00:11] And now h7 would win.} Kc5 {[%emt 0:00:34]} 40. h7 {[%emt 0:00:33]} Kb5 {[%emt 0:00:21]} 41. Ra8 {[%emt 0:30:54] Weighted Error Value: White=0.08 (flawless) /Black=0.39} (41. Bh6 $142) 1-0

[Event "Summer Prague Open-A 2022"]
[Site "Prague"]
[Date "2022.08.05"]
[Round "1.19"]
[White "Lehocz, Jozsef"]
[Black "Risting, Eivind Olav"]
[Result "0-1"]
[ECO "A00"]
[WhiteElo "1936"]
[BlackElo "2325"]
[Annotator "TA"]
[PlyCount "98"]
[EventDate "2022.08.05"]
[EventType "swiss"]
[EventCountry "CZE"]
[SourceTitle "playchess.com"]
[Source "ChessBase"]
[SourceQuality "1"]
[TimeControl "40/5400+30:1800+30"]

{[%evp 9,98,-41,-28,-49,-47,-49,-53,-50,-48,-44,-45,-52,-22,-24,0,0,13,6,12,4,5,0,0,-7,0,-36,-35,-63,-57,-49,-33,-51,-27,-38,-29,-41,-8,-11,16,-12,0,6,108,-58,-10,-3,-12,-85,-114,-120,-116,-338,-336,-514,-522,-558,-554,-518,-250,-256,-247,-255,-254,-300,-300,-297,-304,-406,-400,-472,-457,-446,-400,-533,-543,-616,-603,-596,-505,-479,-448,-435,-368,-371,-364,-368,-364,-349,-350,-398,-392]} 1. c3 {[%emt 0:00:01]} Nf6 {[%emt 0:01:25]} 2. d3 {[%emt 0:00:06]} d5 {[%emt 0:00:40]} 3. Qc2 {[%emt 0:00:04]} g6 {[%emt 0:01:28]} 4. e4 {[%emt 0:00:08]} Bg7 {[%emt 0:00:53] [#]} 5. Bg5 $146 {[%emt 0:00:44]} ({Predecessor:} 5. Nf3 O-O 6. Be2 c5 7. O-O Nc6 8. a3 Bg4 9. h3 Bxf3 10. Bxf3 Rc8 11. Bg5 {½-½ (49) Korth,M (1820)-Bothe,M (1873) Mittelfranken 2018}) 5... O-O {[%emt 0:01:55]} 6. Nd2 {[%emt 0:00:10] A00: Irregular Openings.} c5 {[%emt 0:00:40]} 7. Be2 {[%emt 0:01:38]} Nc6 {[%emt 0:01:40]} 8. Ngf3 {[%emt 0:02:12] Black is slightly better.} b6 {[%emt 0:09:27]} 9. O-O {[%emt 0:04:04]} h6 {[%emt 0:04:12]} 10. Bh4 {[%emt 0:00:20]} Re8 {[%emt 0:03:56]} 11. Rfe1 {[%emt 0:11:23]} Bb7 {[%emt 0:03:52]} 12. e5 {[%emt 0:09:19]} Nh5 {[%emt 0:04:49]} 13. d4 {[%emt 0:00:45]} Nf4 {[%emt 0:05:59]} 14. Bb5 {[%emt 0:07:19][%cal Oe5e6]} Ne6 {[%emt 0:07:46]} 15. Nb3 {[%emt 0:08:16]} a6 {[%emt 0:01:31]} 16. Bf1 {[%emt 0:05:06]} a5 {[%emt 0:08:04]} 17. dxc5 {[%emt 0:13:27]} bxc5 {[%emt 0:00:19]} 18. a4 {[%emt 0:00:48]} ({Much worse is} 18. Bb5 a4 19. Nbd2 Qa5 $17) 18... Qb6 {[%emt 0:08:38]} 19. Rad1 {[%emt 0:02:21]} Red8 {[%emt 0:03:42]} 20. Bb5 {[%emt 0:00:25]} Rab8 {[%emt 0:02:20]} 21. Nc1 {[%emt 0:03:13]} Qc7 {[%emt 0:02:41][%cal Rc6e5]} 22. Bg3 {[%emt 0:01:34]} Ba8 {[%emt 0:04:51]} 23. b3 {[%emt 0:01:36]} Qb6 {[%emt 0:04:35]} 24. h3 {[%emt 0:05:36]} Rbc8 {[%emt 0:00:34]} 25. Nh4 {[%emt 0:03:06]} Nf8 {[%emt 0:02:14] [#]} (25... c4 $11) 26. Kh2 $2 {[%emt 0:03:04]} (26. e6 $1 $16 {[%cal Re6f7]}) 26... e6 {[%emt 0:00:37]} (26... d4 $15) 27. f4 $11 {[%emt 0:00:35]} d4 {[%emt 0:00:19]} 28. Nd3 {[%emt 0:04:33]} (28. Nf3 $11 {remains equal.}) 28... dxc3 $17 {[%emt 0:00:28] Strongly threatening ...Nd4.} 29. Qxc3 {[%emt 0:00:12]} Nd4 {[%emt 0:00:15] [#] Against Nf3. ...g5 is the strong threat.} 30. Bc4 $2 {[%emt 0:00:19] This costs White the game.} (30. Nb2 $17) 30... g5 $19 {[%emt 0:00:31]} 31. Nf3 {[%emt 0:02:27]} (31. fxg5 $142 hxg5 32. Qd2 gxh4 33. Bxh4) 31... Bxf3 {[%emt 0:00:14]} 32. gxf3 {[%emt 0:00:01]} Nxf3+ {[%emt 0:00:16] Pair of Knights!} 33. Kg2 {[%emt 0:00:01]} Nxe1+ {[%emt 0:01:14]} (33... Qb7 $142 {( -> ...Nh4+)} 34. Kf2 gxf4 35. Nxf4 Nxe5) 34. Rxe1 {[%emt 0:00:45]} Ng6 {[%emt 0:00:27] Threatens to win with ...Qb7+.} 35. fxg5 {[%emt 0:01:36]} hxg5 {[%emt 0:00:54]} 36. Qc1 {[%emt 0:00:20]} Qb7+ {[%emt 0:00:57]} 37. Kf2 {[%emt 0:01:56]} Bh6 {[%emt 0:04:04]} 38. h4 {[%emt 0:01:16]} Qe7 {[%emt 0:00:50]} ({But not} 38... g4 $2 39. Qd1 $19) 39. Rh1 {[%emt 0:05:18]} Rd4 {[%emt 0:01:15] aiming for ...Rcd8.} 40. h5 {[%emt 0:02:33]} Nf8 {[%emt 0:08:07][%cal Bg6f8,Bf8d7,Bd7b6,Bb6d5,Bd5f4,Bf4h5][%mdl 32]} 41. Qe3 {[%emt 0:06:16]} Nd7 {[%emt 0:01:47]} 42. Kg2 {[%emt 0:02:50]} Nb6 {[%emt 0:00:55]} 43. Ba6 {[%emt 0:07:02] Inhibits Qb7+.} Rcd8 {[%emt 0:01:33]} 44. Nf2 {[%emt 0:06:55]} Nd5 {[%emt 0:01:08]} 45. Qf3 {[%emt 0:02:02]} Qa7 {[%emt 0:07:48]} 46. Bc4 {[%emt 0:03:57]} Nf4+ {[%emt 0:00:34]} 47. Kh2 {[%emt 0:00:29]} Qa8 {[%emt 0:02:13]} 48. Qxa8 {[%emt 0:00:04]} Rxa8 {[%emt 0:00:02]} 49. Rg1 {[%emt 0:00:41]} Nxh5 {[%emt 0:00:30] Weighted Error Value: White=0.29 (precise) /Black=0.23 (precise)} 0-1

[Event "Summer Prague Open-A 2022"]
[Site "Prague"]
[Date "2022.08.05"]
[Round "1.20"]
[White "Hansch, Karsten"]
[Black "Lye, Sigurd"]
[Result "1/2-1/2"]
[ECO "B30"]
[WhiteElo "2320"]
[BlackElo "1717"]
[Annotator "TA"]
[PlyCount "65"]
[EventDate "2022.08.05"]
[EventType "swiss"]
[EventCountry "CZE"]
[SourceTitle "playchess.com"]
[Source "ChessBase"]
[SourceQuality "1"]
[TimeControl "40/5400+30:1800+30"]

{[%evp 9,65,6,19,14,24,11,15,8,16,-83,16,23,38,40,53,10,13,-16,-13,-8,0,-50,-70,-67,21,13,15,16,9,9,33,29,33,46,59,19,18,0,0,-5,0,-21,-15,-75,-38,-33,-10,-39,-39,-41,-50,-56,-37,-33,0,-52,0,-57]} 1. e4 {[%emt 0:00:02]} c5 {[%emt 0:00:04]} 2. Nf3 {[%emt 0:00:06]} Nc6 {[%emt 0:00:05]} 3. Bc4 {[%emt 0:00:04]} e6 {[%emt 0:03:28]} 4. O-O {[%emt 0:00:25]} Nf6 {[%emt 0:03:54]} 5. Re1 {[%emt 0:02:53]} d5 {[%emt 0:05:59]} 6. exd5 {[%emt 0:01:58] B30: Sicilian: 2...Nc6 3 Bb5, lines without ...g6.} Nxd5 {[%emt 0:00:06]} 7. d4 {[%emt 0:00:04]} cxd4 {[%emt 0:15:18]} 8. Nxd4 {[%emt 0:00:48] [#]} Bc5 $146 {[%emt 0:04:32]} ({Predecessor:} 8... Be7 9. Nxc6 bxc6 10. Nd2 Bf6 11. Ne4 O-O 12. Nxf6+ Qxf6 13. c3 Rd8 14. Qe2 Bb7 {½-½ (52) Osinovsky,S (2241)-Kulkarni,R (2321) Chess.com INT 2020}) 9. Nb3 {[%emt 0:18:59] [#]} (9. Nxc6 $11 bxc6 10. Nd2) 9... Be7 {[%emt 0:13:39]} (9... Bxf2+ $1 $17 10. Kxf2 Qh4+ 11. Kg1 Qxc4) 10. Bxd5 $11 {[%emt 0:02:21]} Qxd5 {[%emt 0:00:49]} 11. Qxd5 {[%emt 0:00:45]} exd5 {[%emt 0:00:06]} 12. Be3 {[%emt 0:00:30]} (12. Nc3 $5 {[%cal Rc3d5]}) 12... Be6 {[%emt 0:03:48]} 13. Bc5 {[%emt 0:05:00]} Bf6 {[%emt 0:01:58]} 14. c3 {[%emt 0:00:11]} O-O-O {[%emt 0:00:31]} 15. Rd1 {[%emt 0:02:14]} (15. Nd4 $11) 15... d4 $1 $15 {[%emt 0:09:14]} 16. Nxd4 {[%emt 0:00:09]} b6 {[%emt 0:02:55] [#]} (16... Rd5 $1 $15 17. Ba3 (17. b4 Rhd8 $17) 17... b6) 17. Na3 $1 $11 {[%emt 0:00:10]} bxc5 {[%emt 0:06:38]} 18. Nxc6 {[%emt 0:01:06][%cal Bd4c6,Bc6a5,Ba5c4,Bc4e3][%mdl 32]} Rxd1+ {[%emt 0:01:12]} 19. Rxd1 {[%emt 0:00:45]} a6 {[%emt 0:01:59]} 20. Ra1 {[%emt 0:00:58]} Kc7 {[%emt 0:01:41]} 21. Na5 {[%emt 0:00:07]} Rd8 {[%emt 0:02:42][%cal Oe6a2]} 22. N5c4 {[%emt 0:00:19] Pair of Knights!} Rd3 {[%emt 0:01:43][%cal Of6c3]} 23. Ne3 {[%emt 0:03:07]} Bg5 {[%emt 0:02:52]} 24. Nf1 {[%emt 0:00:50]} Kc6 {[%emt 0:02:02]} 25. f3 {[%emt 0:01:46]} Rd8 {[%emt 0:01:40][%mdl 1024] Black has compensation.} 26. b3 {[%emt 0:04:28]} (26. g3 $11 {remains equal.}) 26... Bf6 {[%emt 0:02:37]} 27. Rc1 {[%emt 0:00:07]} Rd3 {[%emt 0:00:07]} 28. Nb1 {[%emt 0:00:58]} Bg5 {[%emt 0:02:16]} 29. Re1 {[%emt 0:01:21]} c4 {[%emt 0:01:00]} 30. b4 {[%emt 0:04:31]} Bf6 {[%emt 0:00:13]} 31. Rc1 $1 {[%emt 0:00:21]} Bg5 {[%emt 0:00:20]} 32. Re1 {[%emt 0:00:47]} Bf6 {[%emt 0:00:06]} (32... a5 $5 33. bxa5 Rd5 $15) 33. Rc1 $1 {Weighted Error Value: White=0.22 (precise) /Black=0.18 (very precise)} 1/2-1/2

[Event "Summer Prague Open-A 2022"]
[Site "Prague"]
[Date "2022.08.05"]
[Round "1.21"]
[White "Tesar, Jan"]
[Black "Kulhanek, Tomas"]
[Result "0-1"]
[ECO "A46"]
[WhiteElo "1975"]
[BlackElo "2319"]
[Annotator "TA"]
[PlyCount "90"]
[EventDate "2022.08.05"]
[EventType "swiss"]
[EventCountry "CZE"]
[SourceTitle "playchess.com"]
[Source "ChessBase"]
[SourceQuality "1"]
[TimeControl "40/5400+30:1800+30"]

{[%evp 15,90,-5,-3,-6,4,0,1,12,15,-132,-118,-123,-126,-116,-115,-125,-101,-123,-79,-89,-86,-119,-125,-105,-58,-67,-66,-62,-41,-43,-45,-37,-41,-77,-44,-81,-81,-75,-73,-79,-70,-77,-75,-146,-140,-139,-34,-41,-18,-28,-22,-36,-25,-25,0,-108,-104,-93,-106,-113,-124,-277,-267,-666,-666,-643,-612,-831,-785,-849,-818,-1414,-1294,-2525,-2368,-29987,-29988]} 1. d4 {[%emt 0:00:30]} Nf6 {[%emt 0:14:07]} 2. Nf3 {[%emt 0:00:12]} e6 {[%emt 0:00:14]} 3. e3 {[%emt 0:00:07]} b6 {[%emt 0:01:05]} 4. Bd3 {[%emt 0:00:07]} Bb7 {[%emt 0:00:04]} 5. O-O {[%emt 0:00:11]} d6 {[%emt 0:01:40]} 6. b3 {[%emt 0:01:21]} g6 {[%emt 0:01:40]} 7. Bb2 {[%emt 0:00:41]} Bg7 {[%emt 0:00:06]} 8. Nbd2 {[%emt 0:00:49]} O-O {[%emt 0:00:52]} 9. Qe2 {[%emt 0:01:08] [#] A47: 1 d4 Nf6 2 Nf3 b6: Torre, London and Colle Systems.} a5 $146 {[%emt 0:01:12]} ({Predecessor:} 9... Nbd7 10. Rfd1 c5 11. Ba6 Bxa6 12. Qxa6 Qc7 13. Qd3 Rfd8 14. c4 a6 15. Rac1 Qb7 16. Qb1 b5 {0-1 (68) Socko,M (2472)-Socko,B (2624) Grosseto Prugna 2015}) 10. Rad1 {[%emt 0:03:49]} a4 {[%emt 0:01:19]} 11. b4 {[%emt 0:02:11] The position is equal.} a3 {[%emt 0:04:47]} 12. Bc1 {[%emt 0:00:18] [#]} (12. Ba1 $1 $11 {remains equal.}) 12... Nd5 $1 $17 {[%emt 0:03:32][%cal Bf6d5,Bd5b4,Bb4c6][%mdl 32]} 13. Nb1 {[%emt 0:03:40] Inhibits Nc3.} Nxb4 {[%emt 0:00:17]} 14. Bc4 {[%emt 0:02:33]} d5 {[%emt 0:18:34]} 15. Bb3 {[%emt 0:03:03]} Ba6 {[%emt 0:03:35]} 16. c4 {[%emt 0:00:11]} N4c6 {[%emt 0:01:29]} 17. Nxa3 {[%emt 0:04:24]} Na5 {[%emt 0:00:44]} 18. Qc2 {[%emt 0:00:59]} Nbc6 {[%emt 0:03:53]} 19. Rfe1 {[%emt 0:04:41][%cal Bf1e1,Be1e2,Be2c2][%mdl 32]} dxc4 {[%emt 0:04:31]} (19... Nb4 $17 20. Qe2 c5) 20. Nxc4 $15 {[%emt 0:02:37]} Nxc4 {[%emt 0:08:14]} 21. Bxc4 {[%emt 0:00:10]} Bxc4 {[%emt 0:00:08]} (21... Nb4 $5 {[%cal Rb4c2]} 22. Qb3 Bxc4 23. Qxc4 Nxa2 $11) 22. Qxc4 {[%emt 0:00:12]} Qd5 {[%emt 0:00:19]} 23. Qxd5 {[%emt 0:06:00]} exd5 {[%emt 0:00:08]} 24. Re2 {[%emt 0:00:18]} Na5 {[%emt 0:01:02]} 25. Rc2 {[%emt 0:13:15]} c6 {[%emt 0:02:11]} 26. Bd2 {[%emt 0:02:39]} Nc4 {[%emt 0:00:13]} 27. Bb4 {[%emt 0:00:35]} Rfe8 {[%emt 0:01:49]} 28. Nd2 {[%emt 0:02:37]} Ra4 {[%emt 0:00:36] Black is more active.} 29. Nxc4 {[%emt 0:06:34]} (29. Rb1 $142) 29... dxc4 $17 {[%emt 0:00:02]} 30. a3 {[%emt 0:01:27] [#]} b5 {[%emt 0:00:05]} (30... Rd8 $1 $17 {[%cal Oc6c5] White must now prevent ...c5!} 31. Rb1 b5) 31. d5 $1 $15 {[%emt 0:04:43]} Rd8 {[%emt 0:00:09]} 32. d6 {[%emt 0:03:03]} f5 {[%emt 0:02:39]} 33. Re2 {[%emt 0:05:01]} ({Of course not} 33. d7 Bf8 34. Kf1 Bxb4 35. axb4 Rxb4 $19) 33... Kf7 {[%emt 0:01:51]} 34. e4 {[%emt 0:01:01]} ({But not} 34. d7 $2 Bf8 35. f4 Bxb4 36. axb4 Rxb4 $19) 34... f4 {[%emt 0:03:04]} 35. g3 {[%emt 0:02:03]} (35. e5 $1 $11 Ke6 36. f3) 35... f3 $17 {[%emt 0:09:58]} 36. Re3 {[%emt 0:00:42]} Be5 {[%emt 0:01:49]} 37. Rxf3+ {[%emt 0:02:47]} Ke6 {[%emt 0:00:50][%cal Re5d6]} 38. Re3 $2 {[%emt 0:02:28] Now White is beyond hope.} (38. Kf1 $17 {was worth a try.}) 38... Bxd6 $19 {[%emt 0:05:19]} 39. g4 $2 {[%emt 0:04:30] [#]} (39. Kf1) 39... Bxh2+ $1 {[%emt 0:01:22][%mdl 512]} 40. Kxh2 {[%emt 0:00:19]} Rxd1 {[%emt 0:00:06] KRR-KRB} 41. f4 {[%emt 0:30:52]} Rd3 {[%emt 0:31:30]} 42. f5+ {[%emt 0:01:36]} Ke5 {[%emt 0:01:41]} 43. Re2 {[%emt 0:00:20]} c5 {[%emt 0:01:40]} 44. Bxc5 {[%emt 0:00:27]} c3 {[%emt 0:00:09] Strongly threatening ...Rd2.} 45. Bb4 {[%emt 0:03:22] [#]} Rxb4 $1 {[%emt 0:00:46][%mdl 512] Weighted Error Value: White=0.75/Black=0.15 (very precise)} 0-1